Workbook

Sheet الوجهة الرئيسية

Sheet كود وجرد
C4: عمود1 | D4: عمود2 | E4: الكود | F4: الصنف | G4: رصيد بداية | H4: الصادر | I4: مرتجع | J4: الكمية | K4: سعر الوحدة | L4: الإجمالي | M4: كود الشركة | N4: اسم الشركة | O4: رقم السند | P4: ملاحظات
E5: 100 | F5: مواسير استيم لحام ½" جدول40 | G5: 500 | K5: 20 | M5: 1 | N5: الوطنية المتحدة
E6: 101 | F6: مواسير استيم لحام ¾" جدول40 | K6: 30 | M6: 2
E7: 102 | F7: مواسير استيم لحام 1" جدول40 | K7: 40 | M7: 3
E8: 103 | F8: مواسير استيم لحام ¼1" جدول40 | M8: 4
E9: 104 | F9: مواسير استيم لحام ½1" جدول40 | M9: 5
E10: 105 | F10: مواسير استيم لحام 2" جدول40 | M10: 6
E11: 106 | F11: مواسير استيم لحام 8" جدول40 | M11: 7
E12: 107 | F12: مواسير استيم لحام 6" جدول80 | M12: 8
E13: 108 | F13: مواسير استيم لحام ½2" جدول20 | M13: 9
E14: 109 | F14: كوع لحام ¼1" جدول20 | M14: 10
E15: 110 | F15: كوع لحام ½2" جدول20 | M15: 11
E16: 111 | F16: كوع لحام 3" جدول20 | M16: 12
E17: 112 | F17: كوع لحام 4" جدول20 | M17: 13
E18: 113 | F18: كوع لحام 5" جدول20 | M18: 14
E19: 114 | F19: كوع لحام 6" جدول20 | M19: 15
E20: 115 | F20: كوع لحام ½" جدول40 | M20: 16
E21: 116 | F21: كوع لحام ¾" جدول40 | M21: 17
E22: 117 | F22: كوع لحام 1" جدول40 | M22: 18
E23: 118 | F23: كوع لحام ¼1" جدول40 | M23: 19
E24: 119 | F24: كوع لحام ½1" جدول40 | M24: 20
E25: 120 | F25: كوع لحام 2" جدول40 | M25: 21
E26: 121 | F26: كوع لحام ½2" جدول40 | M26: 22
E27: 122 | F27: كوع لحام 3" جدول40 | M27: 23
E28: 123 | F28: كوع لحام 4" جدول40 | M28: 24
E29: 124 | F29: كوع لحام 5" جدول40 | M29: 25
E30: 125 | F30: كوع لحام 6" جدول40 | M30: 26
E31: 126 | F31: كوع لحام 8" جدول40 | M31: 27
E32: 127 | F32: كوع لحام ½" جدول80 | M32: 28
E33: 128 | F33: كوع لحام ¾" جدول80 | M33: 29
E34: 129 | F34: كوع لحام 1" جدول80 | M34: 30
E35: 130 | F35: كوع لحام ¼1" جدول80 | M35: 31
E36: 131 | F36: كوع لحام ½1" جدول80 | M36: 32
E37: 132 | F37: كوع لحام 2" جدول80 | M37: 33
E38: 133 | F38: كوع لحام ½2" جدول80 | M38: 34
E39: 134 | F39: كوع لحام 3" جدول80 | M39: 35
E40: 135 | F40: كوع لحام 4" جدول80 | M40: 36
E41: 136 | F41: كوع لحام 5" جدول80 | M41: 37
E42: 137 | F42: كوع لحام 6" جدول80 | M42: 38
E43: 138 | F43: ولد لحام ½" جدول40 | M43: 39
E44: 139 | F44: ولد لحام ¾" جدول40 | M44: 40
E45: 140 | F45: ولد لحام 1" جدول40 | M45: 41
E46: 141 | F46: ولد لحام ¼1" جدول40 | M46: 42
E47: 142 | F47: ولد لحام ½1" جدول40 | M47: 43
E48: 143 | F48: ولد لحام 2" جدول40 | M48: 44
E49: 144 | F49: ولد لحام ½2" جدول40 | M49: 45
E50: 145 | F50: ولد لحام 3" جدول40 | M50: 46
E51: 146 | F51: ته لحام ½" جدول40 | M51: 47
E52: 147 | F52: ته لحام ¾" جدول40 | M52: 48
E53: 148 | F53: ته لحام 1" جدول40 | M53: 49
E54: 149 | F54: ته لحام ¼1" جدول40 | M54: 50
E55: 150 | F55: ته لحام ½1" جدول40 | M55: 51
E56: 151 | F56: ته لحام 2" جدول40 | M56: 52
E57: 152 | F57: ته لحام ½2" جدول40 | M57: 53
E58: 153 | F58: ته لحام 3" جدول40 | M58: 54
E59: 154 | F59: ته لحام 4" جدول40 | M59: 55
E60: 155 | F60: ته لحام 5" جدول40 | M60: 56
E61: 156 | F61: ته لحام 6" جدول40 | M61: 57
E62: 157 | F62: ته لحام 8" جدول40 | M62: 58
E63: 158 | F63: ته لحام ½2" جدول80 | M63: 59
E64: 159 | F64: مسلوب لحام محلي ¾"*½" ج 40 | M64: 60
E65: 160 | F65: مسلوب لحام محلي 1"*¾" ج40 | M65: 61
E66: 161 | F66: مسلوب لحام محلي 1"*½" ج40 | M66: 62
E67: 162 | F67: مسلوب لحام محلي ¼1"*1" ج 40 | M67: 63
E68: 163 | F68: مسلوب لحام محلي ¼1"*¾" ج40 | M68: 64
E69: 164 | F69: مسلوب لحام محلي ¼1"*½" ج 40 | M69: 65
E70: 165 | F70: مسلوب لحام محلي ½1"*¼1" ج 40 | M70: 66
E71: 166 | F71: مسلوب لحام محلي ½1" *1" ج 40
E72: 167 | F72: مسلوب لحام محلي ½1"*¾" ج40
E73: 168 | F73: مسلوب لحام محلي ½1"*½" ج40
E74: 169 | F74: مسلوب لحام محلي 2"*½1" ج40
E75: 170 | F75: مسلوب لحام محلي 2"*¼1" ج40
E76: 171 | F76: مسلوب لحام محلي2"*1 " ج40
E77: 172 | F77: مسلوب لحام محلي 2"*¾" ج40
E78: 173 | F78: مسلوب لحام محلي 2"*½" ج40
E79: 174 | F79: مسلوب لحام محلي ½2"*2" ج40
E80: 175 | F80: مسلوب لحام محلي ½2"*½1" ج40
E81: 176 | F81: مسلوب لحام محلي ½2"*¼1" ج40
E82: 177 | F82: مسلوب لحام محلي ½2"*1 " ج40
E83: 178 | F83: مسلوب لحام محلي 3"*½2" ج40
E84: 179 | F84: مسلوب لحام محلي 3"* 2" ج40
E85: 180 | F85: مسلوب لحام 3"*½1" ج40
E86: 181 | F86: مسلوب لحام 3"*¼1" ج40
E87: 182 | F87: مسلوب لحام 3" *1" ج40
E88: 183 | F88: مسلوب لحام 4"*3" ج40
E89: 184 | F89: مسلوب لحام 4"*½2" ج40
E90: 185 | F90: مسلوب لحام 4" *2" ج40
E91: 186 | F91: مسلوب لحام 5"*4" ج40
E92: 187 | F92: مسلوب لحام 5"*3" ج40
E93: 188 | F93: مسلوب لحام 6"*5" ج40
E94: 189 | F94: مسلوب لحام 6"*4" ج40
E95: 190 | F95: مسلوب لحام 6"*3" ج40
E96: 191 | F96: مسلوب لحام 6"*½2" ج40 | M96: 100
E97: 192 | F97: مسلوب لحام 8"*6" ج40 | M97: 101
E98: 193 | F98: مسلوب لحام 8"*5" ج40 | M98: 102
E99: 194 | F99: مسلوب لحام 8"*4" ج40 | M99: 103
E100: 195 | F100: كاب لحام محلي ½" ج40 | M100: 104
E101: 196 | F101: كاب لحام محلي ¾" ج40 | M101: 105
E102: 197 | F102: كاب لحام محلي 1" ج40 | M102: 106
E103: 198 | F103: كاب لحام محلي ¼1" ج40 | M103: 107
E104: 199 | F104: كاب لحام محلي ½1" ج40 | M104: 108
M105: 109
M106: 110
M107: 111
M108: 112
M109: 113
M110: 114
M111: 115
M112: 116
M113: 117
M114: 118
M115: 119
M116: 120
M117: 121
M118: 122
M119: 123
M120: 124
M121: 125
M122: 126
M123: 127
M124: 128
M125: 129
M126: 130
M127: 131
M128: 132
M129: 133
M130: 134
M131: 135
M132: 136
M133: 137
M134: 138
M135: 139
M136: 140
M137: 141
M138: 142
M139: 143
M140: 144
M141: 145
M142: 146
M143: 147
M144: 148
M145: 149
M146: 150
M147: 151
M148: 152
M149: 153
M150: 154
M151: 155
M152: 156
M153: 157
M154: 158
M155: 159
M156: 160
M157: 161
M158: 162
M159: 163
M160: 164
M161: 165
M162: 166

Sheet حركة اليوميه
A1: 27
C4: اليوم | D4: التاريخ | E4: الكود | F4: الصنف | G4: الوارد | H4: الصادر | I4: مرتجع | J4: الكمية | K4: سعر الوحدة | L4: الإجمالي | M4: كود الشركة | N4: اسم الشركة | O4: رقم السند | P4: ملاحظات
D5: 2018-04-17 | E5: 100 | F5: =IFERROR(VLOOKUP(E5,'كود وجرد'!$E$5:$F$10000,2,0),"") -> مواسير استيم لحام ½" جدول40 | G5: 93.4 | H5: 10 | I5: 20 | J5: =IFERROR(VLOOKUP(E5,'كود وجرد'!$E$5:$G$2609,3,0)+(G5+I5)-H5,"") -> 603.4 | K5: 20 | L5: =الجدول1[[#This Row],[سعر الوحدة]]*الجدول1[[#This Row],[الكمية]] -> 12068 | M5: 1 | N5: =IFERROR(VLOOKUP(M5,'كود وجرد'!M4:N10000,2,0),"") -> الوطنية المتحدة
D6: 2018-04-17 | E6: 101 | F6: =IFERROR(VLOOKUP(E6,'كود وجرد'!$E$5:$F$10000,2,0),"") -> مواسير استيم لحام ¾" جدول40 | G6: 230 | J6: =IFERROR(VLOOKUP(E6,'كود وجرد'!$E$5:$G$2609,3,0)+(G6+I6)-H6,"") -> 230 | L6: =الجدول1[[#This Row],[سعر الوحدة]]*الجدول1[[#This Row],[الكمية]] -> 0 | N6: =IFERROR(VLOOKUP(M6,'كود وجرد'!M5:N10001,2,0),"") -> 
D7: 2018-04-17 | E7: 102 | F7: =IFERROR(VLOOKUP(E7,'كود وجرد'!$E$5:$F$10000,2,0),"") -> مواسير استيم لحام 1" جدول40 | G7: 226.28 | J7: =IFERROR(VLOOKUP(E7,'كود وجرد'!$E$5:$G$2609,3,0)+(G7+I7)-H7,"") -> 226.28 | L7: =الجدول1[[#This Row],[سعر الوحدة]]*الجدول1[[#This Row],[الكمية]] -> 0 | N7: =IFERROR(VLOOKUP(M7,'كود وجرد'!M6:N10002,2,0),"") -> 
D8: 2018-04-17 | E8: 103 | F8: =IFERROR(VLOOKUP(E8,'كود وجرد'!$E$5:$F$10000,2,0),"") -> مواسير استيم لحام ¼1" جدول40 | G8: 89.4 | J8: =IFERROR(VLOOKUP(E8,'كود وجرد'!$E$5:$G$2609,3,0)+(G8+I8)-H8,"") -> 89.4 | L8: =الجدول1[[#This Row],[سعر الوحدة]]*الجدول1[[#This Row],[الكمية]] -> 0 | N8: =IFERROR(VLOOKUP(M8,'كود وجرد'!M7:N10003,2,0),"") -> 
D9: 2018-04-17 | E9: 104 | F9: =IFERROR(VLOOKUP(E9,'كود وجرد'!$E$5:$F$10000,2,0),"") -> مواسير استيم لحام ½1" جدول40 | G9: 180 | J9: =IFERROR(VLOOKUP(E9,'كود وجرد'!$E$5:$G$2609,3,0)+(G9+I9)-H9,"") -> 180 | L9: =الجدول1[[#This Row],[سعر الوحدة]]*الجدول1[[#This Row],[الكمية]] -> 0 | N9: =IFERROR(VLOOKUP(M9,'كود وجرد'!M8:N10004,2,0),"") -> 
D10: 2018-04-17 | E10: 105 | F10: =IFERROR(VLOOKUP(E10,'كود وجرد'!$E$5:$F$10000,2,0),"") -> مواسير استيم لحام 2" جدول40 | G10: 87.5 | J10: =IFERROR(VLOOKUP(E10,'كود وجرد'!$E$5:$G$2609,3,0)+(G10+I10)-H10,"") -> 87.5 | L10: =الجدول1[[#This Row],[سعر الوحدة]]*الجدول1[[#This Row],[الكمية]] -> 0 | N10: =IFERROR(VLOOKUP(M10,'كود وجرد'!M9:N10005,2,0),"") -> 
D11: 2018-04-17 | E11: 106 | F11: =IFERROR(VLOOKUP(E11,'كود وجرد'!$E$5:$F$10000,2,0),"") -> مواسير استيم لحام 8" جدول40 | G11: 7 | J11: =IFERROR(VLOOKUP(E11,'كود وجرد'!$E$5:$G$2609,3,0)+(G11+I11)-H11,"") -> 7 | L11: =الجدول1[[#This Row],[سعر الوحدة]]*الجدول1[[#This Row],[الكمية]] -> 0 | N11: =IFERROR(VLOOKUP(M11,'كود وجرد'!M10:N10006,2,0),"") -> 
D12: 2018-04-17 | E12: 107 | F12: =IFERROR(VLOOKUP(E12,'كود وجرد'!$E$5:$F$10000,2,0),"") -> مواسير استيم لحام 6" جدول80 | G12: 6 | J12: =IFERROR(VLOOKUP(E12,'كود وجرد'!$E$5:$G$2609,3,0)+(G12+I12)-H12,"") -> 6 | L12: =الجدول1[[#This Row],[سعر الوحدة]]*الجدول1[[#This Row],[الكمية]] -> 0 | N12: =IFERROR(VLOOKUP(M12,'كود وجرد'!M11:N10007,2,0),"") -> 
D13: 2018-04-17 | E13: 108 | F13: =IFERROR(VLOOKUP(E13,'كود وجرد'!$E$5:$F$10000,2,0),"") -> مواسير استيم لحام ½2" جدول20 | G13: 37 | J13: =IFERROR(VLOOKUP(E13,'كود وجرد'!$E$5:$G$2609,3,0)+(G13+I13)-H13,"") -> 37 | L13: =الجدول1[[#This Row],[سعر الوحدة]]*الجدول1[[#This Row],[الكمية]] -> 0 | N13: =IFERROR(VLOOKUP(M13,'كود وجرد'!M12:N10008,2,0),"") -> 
D14: 2018-04-17 | E14: 109 | F14: =IFERROR(VLOOKUP(E14,'كود وجرد'!$E$5:$F$10000,2,0),"") -> كوع لحام ¼1" جدول20 | G14: 47 | J14: =IFERROR(VLOOKUP(E14,'كود وجرد'!$E$5:$G$2609,3,0)+(G14+I14)-H14,"") -> 47 | L14: =الجدول1[[#This Row],[سعر الوحدة]]*الجدول1[[#This Row],[الكمية]] -> 0 | N14: =IFERROR(VLOOKUP(M14,'كود وجرد'!M13:N10009,2,0),"") -> 
D15: 2018-04-17 | E15: 110 | F15: =IFERROR(VLOOKUP(E15,'كود وجرد'!$E$5:$F$10000,2,0),"") -> كوع لحام ½2" جدول20 | G15: 40 | J15: =IFERROR(VLOOKUP(E15,'كود وجرد'!$E$5:$G$2609,3,0)+(G15+I15)-H15,"") -> 40 | L15: =الجدول1[[#This Row],[سعر الوحدة]]*الجدول1[[#This Row],[الكمية]] -> 0 | N15: =IFERROR(VLOOKUP(M15,'كود وجرد'!M14:N10010,2,0),"") -> 
D16: 2018-04-17 | E16: 111 | F16: =IFERROR(VLOOKUP(E16,'كود وجرد'!$E$5:$F$10000,2,0),"") -> كوع لحام 3" جدول20 | G16: 43 | J16: =IFERROR(VLOOKUP(E16,'كود وجرد'!$E$5:$G$2609,3,0)+(G16+I16)-H16,"") -> 43 | L16: =الجدول1[[#This Row],[سعر الوحدة]]*الجدول1[[#This Row],[الكمية]] -> 0 | N16: =IFERROR(VLOOKUP(M16,'كود وجرد'!M15:N10011,2,0),"") -> 
D17: 2018-04-17 | E17: 112 | F17: =IFERROR(VLOOKUP(E17,'كود وجرد'!$E$5:$F$10000,2,0),"") -> كوع لحام 4" جدول20 | G17: 35 | J17: =IFERROR(VLOOKUP(E17,'كود وجرد'!$E$5:$G$2609,3,0)+(G17+I17)-H17,"") -> 35 | L17: =الجدول1[[#This Row],[سعر الوحدة]]*الجدول1[[#This Row],[الكمية]] -> 0 | N17: =IFERROR(VLOOKUP(M17,'كود وجرد'!M16:N10012,2,0),"") -> 
D18: 2018-04-17 | E18: 113 | F18: =IFERROR(VLOOKUP(E18,'كود وجرد'!$E$5:$F$10000,2,0),"") -> كوع لحام 5" جدول20 | G18: 11 | J18: =IFERROR(VLOOKUP(E18,'كود وجرد'!$E$5:$G$2609,3,0)+(G18+I18)-H18,"") -> 11 | L18: =الجدول1[[#This Row],[سعر الوحدة]]*الجدول1[[#This Row],[الكمية]] -> 0 | N18: =IFERROR(VLOOKUP(M18,'كود وجرد'!M17:N10013,2,0),"") -> 
D19: 2018-04-17 | E19: 114 | F19: =IFERROR(VLOOKUP(E19,'كود وجرد'!$E$5:$F$10000,2,0),"") -> كوع لحام 6" جدول20 | G19: 9 | J19: =IFERROR(VLOOKUP(E19,'كود وجرد'!$E$5:$G$2609,3,0)+(G19+I19)-H19,"") -> 9 | L19: =الجدول1[[#This Row],[سعر الوحدة]]*الجدول1[[#This Row],[الكمية]] -> 0 | N19: =IFERROR(VLOOKUP(M19,'كود وجرد'!M18:N10014,2,0),"") -> 
D20: 2018-04-17 | E20: 115 | F20: =IFERROR(VLOOKUP(E20,'كود وجرد'!$E$5:$F$10000,2,0),"") -> كوع لحام ½" جدول40 | G20: 120 | J20: =IFERROR(VLOOKUP(E20,'كود وجرد'!$E$5:$G$2609,3,0)+(G20+I20)-H20,"") -> 120 | L20: =الجدول1[[#This Row],[سعر الوحدة]]*الجدول1[[#This Row],[الكمية]] -> 0 | N20: =IFERROR(VLOOKUP(M20,'كود وجرد'!M19:N10015,2,0),"") -> 
D21: 2018-04-17 | E21: 116 | F21: =IFERROR(VLOOKUP(E21,'كود وجرد'!$E$5:$F$10000,2,0),"") -> كوع لحام ¾" جدول40 | G21: 18 | J21: =IFERROR(VLOOKUP(E21,'كود وجرد'!$E$5:$G$2609,3,0)+(G21+I21)-H21,"") -> 18 | L21: =الجدول1[[#This Row],[سعر الوحدة]]*الجدول1[[#This Row],[الكمية]] -> 0 | N21: =IFERROR(VLOOKUP(M21,'كود وجرد'!M20:N10016,2,0),"") -> 
D22: 2018-04-17 | E22: 117 | F22: =IFERROR(VLOOKUP(E22,'كود وجرد'!$E$5:$F$10000,2,0),"") -> كوع لحام 1" جدول40 | G22: 80 | J22: =IFERROR(VLOOKUP(E22,'كود وجرد'!$E$5:$G$2609,3,0)+(G22+I22)-H22,"") -> 80 | L22: =الجدول1[[#This Row],[سعر الوحدة]]*الجدول1[[#This Row],[الكمية]] -> 0 | N22: =IFERROR(VLOOKUP(M22,'كود وجرد'!M21:N10017,2,0),"") -> 
D23: 2018-04-17 | E23: 118 | F23: =IFERROR(VLOOKUP(E23,'كود وجرد'!$E$5:$F$10000,2,0),"") -> كوع لحام ¼1" جدول40 | G23: 42 | J23: =IFERROR(VLOOKUP(E23,'كود وجرد'!$E$5:$G$2609,3,0)+(G23+I23)-H23,"") -> 42 | L23: =الجدول1[[#This Row],[سعر الوحدة]]*الجدول1[[#This Row],[الكمية]] -> 0 | N23: =IFERROR(VLOOKUP(M23,'كود وجرد'!M22:N10018,2,0),"") -> 
D24: 2018-04-17 | E24: 119 | F24: =IFERROR(VLOOKUP(E24,'كود وجرد'!$E$5:$F$10000,2,0),"") -> كوع لحام ½1" جدول40 | G24: 103 | J24: =IFERROR(VLOOKUP(E24,'كود وجرد'!$E$5:$G$2609,3,0)+(G24+I24)-H24,"") -> 103 | L24: =الجدول1[[#This Row],[سعر الوحدة]]*الجدول1[[#This Row],[الكمية]] -> 0 | N24: =IFERROR(VLOOKUP(M24,'كود وجرد'!M23:N10019,2,0),"") -> 
D25: 2018-04-17 | E25: 120 | F25: =IFERROR(VLOOKUP(E25,'كود وجرد'!$E$5:$F$10000,2,0),"") -> كوع لحام 2" جدول40 | G25: 101 | J25: =IFERROR(VLOOKUP(E25,'كود وجرد'!$E$5:$G$2609,3,0)+(G25+I25)-H25,"") -> 101 | L25: =الجدول1[[#This Row],[سعر الوحدة]]*الجدول1[[#This Row],[الكمية]] -> 0 | N25: =IFERROR(VLOOKUP(M25,'كود وجرد'!M24:N10020,2,0),"") -> 
D26: 2018-04-17 | E26: 121 | F26: =IFERROR(VLOOKUP(E26,'كود وجرد'!$E$5:$F$10000,2,0),"") -> كوع لحام ½2" جدول40 | G26: 44 | J26: =IFERROR(VLOOKUP(E26,'كود وجرد'!$E$5:$G$2609,3,0)+(G26+I26)-H26,"") -> 44 | L26: =الجدول1[[#This Row],[سعر الوحدة]]*الجدول1[[#This Row],[الكمية]] -> 0 | N26: =IFERROR(VLOOKUP(M26,'كود وجرد'!M25:N10021,2,0),"") -> 
D27: 2018-04-17 | E27: 122 | F27: =IFERROR(VLOOKUP(E27,'كود وجرد'!$E$5:$F$10000,2,0),"") -> كوع لحام 3" جدول40 | G27: 33 | J27: =IFERROR(VLOOKUP(E27,'كود وجرد'!$E$5:$G$2609,3,0)+(G27+I27)-H27,"") -> 33 | L27: =الجدول1[[#This Row],[سعر الوحدة]]*الجدول1[[#This Row],[الكمية]] -> 0 | N27: =IFERROR(VLOOKUP(M27,'كود وجرد'!M26:N10022,2,0),"") -> 
D28: 2018-04-17 | E28: 123 | F28: =IFERROR(VLOOKUP(E28,'كود وجرد'!$E$5:$F$10000,2,0),"") -> كوع لحام 4" جدول40 | G28: 48 | J28: =IFERROR(VLOOKUP(E28,'كود وجرد'!$E$5:$G$2609,3,0)+(G28+I28)-H28,"") -> 48 | L28: =الجدول1[[#This Row],[سعر الوحدة]]*الجدول1[[#This Row],[الكمية]] -> 0 | N28: =IFERROR(VLOOKUP(M28,'كود وجرد'!M27:N10023,2,0),"") -> 
D29: 2018-04-17 | E29: 124 | F29: =IFERROR(VLOOKUP(E29,'كود وجرد'!$E$5:$F$10000,2,0),"") -> كوع لحام 5" جدول40 | G29: 9 | J29: =IFERROR(VLOOKUP(E29,'كود وجرد'!$E$5:$G$2609,3,0)+(G29+I29)-H29,"") -> 9 | L29: =الجدول1[[#This Row],[سعر الوحدة]]*الجدول1[[#This Row],[الكمية]] -> 0 | N29: =IFERROR(VLOOKUP(M29,'كود وجرد'!M28:N10024,2,0),"") -> 
D30: 2018-04-17 | E30: 125 | F30: =IFERROR(VLOOKUP(E30,'كود وجرد'!$E$5:$F$10000,2,0),"") -> كوع لحام 6" جدول40 | G30: 6 | J30: =IFERROR(VLOOKUP(E30,'كود وجرد'!$E$5:$G$2609,3,0)+(G30+I30)-H30,"") -> 6 | L30: =الجدول1[[#This Row],[سعر الوحدة]]*الجدول1[[#This Row],[الكمية]] -> 0 | N30: =IFERROR(VLOOKUP(M30,'كود وجرد'!M29:N10025,2,0),"") -> 
D31: 2018-04-17 | E31: 126 | F31: =IFERROR(VLOOKUP(E31,'كود وجرد'!$E$5:$F$10000,2,0),"") -> كوع لحام 8" جدول40 | G31: 10 | J31: =IFERROR(VLOOKUP(E31,'كود وجرد'!$E$5:$G$2609,3,0)+(G31+I31)-H31,"") -> 10 | L31: =الجدول1[[#This Row],[سعر الوحدة]]*الجدول1[[#This Row],[الكمية]] -> 0 | N31: =IFERROR(VLOOKUP(M31,'كود وجرد'!M30:N10026,2,0),"") -> 
D32: 2018-04-17 | E32: 127 | F32: =IFERROR(VLOOKUP(E32,'كود وجرد'!$E$5:$F$10000,2,0),"") -> كوع لحام ½" جدول80 | G32: 49 | J32: =IFERROR(VLOOKUP(E32,'كود وجرد'!$E$5:$G$2609,3,0)+(G32+I32)-H32,"") -> 49 | L32: =الجدول1[[#This Row],[سعر الوحدة]]*الجدول1[[#This Row],[الكمية]] -> 0 | N32: =IFERROR(VLOOKUP(M32,'كود وجرد'!M31:N10027,2,0),"") -> 
D33: 2018-04-17 | E33: 128 | F33: =IFERROR(VLOOKUP(E33,'كود وجرد'!$E$5:$F$10000,2,0),"") -> كوع لحام ¾" جدول80 | G33: 58 | J33: =IFERROR(VLOOKUP(E33,'كود وجرد'!$E$5:$G$2609,3,0)+(G33+I33)-H33,"") -> 58 | L33: =الجدول1[[#This Row],[سعر الوحدة]]*الجدول1[[#This Row],[الكمية]] -> 0 | N33: =IFERROR(VLOOKUP(M33,'كود وجرد'!M32:N10028,2,0),"") -> 
D34: 2018-04-17 | E34: 129 | F34: =IFERROR(VLOOKUP(E34,'كود وجرد'!$E$5:$F$10000,2,0),"") -> كوع لحام 1" جدول80 | G34: 44 | J34: =IFERROR(VLOOKUP(E34,'كود وجرد'!$E$5:$G$2609,3,0)+(G34+I34)-H34,"") -> 44 | L34: =الجدول1[[#This Row],[سعر الوحدة]]*الجدول1[[#This Row],[الكمية]] -> 0 | N34: =IFERROR(VLOOKUP(M34,'كود وجرد'!M33:N10029,2,0),"") -> 
D35: 2018-04-17 | E35: 130 | F35: =IFERROR(VLOOKUP(E35,'كود وجرد'!$E$5:$F$10000,2,0),"") -> كوع لحام ¼1" جدول80 | G35: 50 | J35: =IFERROR(VLOOKUP(E35,'كود وجرد'!$E$5:$G$2609,3,0)+(G35+I35)-H35,"") -> 50 | L35: =الجدول1[[#This Row],[سعر الوحدة]]*الجدول1[[#This Row],[الكمية]] -> 0 | N35: =IFERROR(VLOOKUP(M35,'كود وجرد'!M34:N10030,2,0),"") -> 
D36: 2018-04-17 | E36: 131 | F36: =IFERROR(VLOOKUP(E36,'كود وجرد'!$E$5:$F$10000,2,0),"") -> كوع لحام ½1" جدول80 | G36: 30 | J36: =IFERROR(VLOOKUP(E36,'كود وجرد'!$E$5:$G$2609,3,0)+(G36+I36)-H36,"") -> 30 | L36: =الجدول1[[#This Row],[سعر الوحدة]]*الجدول1[[#This Row],[الكمية]] -> 0 | N36: =IFERROR(VLOOKUP(M36,'كود وجرد'!M35:N10031,2,0),"") -> 
D37: 2018-04-17 | E37: 132 | F37: =IFERROR(VLOOKUP(E37,'كود وجرد'!$E$5:$F$10000,2,0),"") -> كوع لحام 2" جدول80 | G37: 33 | J37: =IFERROR(VLOOKUP(E37,'كود وجرد'!$E$5:$G$2609,3,0)+(G37+I37)-H37,"") -> 33 | L37: =الجدول1[[#This Row],[سعر الوحدة]]*الجدول1[[#This Row],[الكمية]] -> 0 | N37: =IFERROR(VLOOKUP(M37,'كود وجرد'!M36:N10032,2,0),"") -> 
D38: 2018-04-17 | E38: 133 | F38: =IFERROR(VLOOKUP(E38,'كود وجرد'!$E$5:$F$10000,2,0),"") -> كوع لحام ½2" جدول80 | G38: 14 | J38: =IFERROR(VLOOKUP(E38,'كود وجرد'!$E$5:$G$2609,3,0)+(G38+I38)-H38,"") -> 14 | L38: =الجدول1[[#This Row],[سعر الوحدة]]*الجدول1[[#This Row],[الكمية]] -> 0 | N38: =IFERROR(VLOOKUP(M38,'كود وجرد'!M37:N10033,2,0),"") -> 
D39: 2018-04-17 | E39: 134 | F39: =IFERROR(VLOOKUP(E39,'كود وجرد'!$E$5:$F$10000,2,0),"") -> كوع لحام 3" جدول80 | G39: 27 | J39: =IFERROR(VLOOKUP(E39,'كود وجرد'!$E$5:$G$2609,3,0)+(G39+I39)-H39,"") -> 27 | L39: =الجدول1[[#This Row],[سعر الوحدة]]*الجدول1[[#This Row],[الكمية]] -> 0 | N39: =IFERROR(VLOOKUP(M39,'كود وجرد'!M38:N10034,2,0),"") -> 
D40: 2018-04-17 | E40: 135 | F40: =IFERROR(VLOOKUP(E40,'كود وجرد'!$E$5:$F$10000,2,0),"") -> كوع لحام 4" جدول80 | G40: 14 | J40: =IFERROR(VLOOKUP(E40,'كود وجرد'!$E$5:$G$2609,3,0)+(G40+I40)-H40,"") -> 14 | L40: =الجدول1[[#This Row],[سعر الوحدة]]*الجدول1[[#This Row],[الكمية]] -> 0 | N40: =IFERROR(VLOOKUP(M40,'كود وجرد'!M39:N10035,2,0),"") -> 
D41: 2018-04-17 | E41: 136 | F41: =IFERROR(VLOOKUP(E41,'كود وجرد'!$E$5:$F$10000,2,0),"") -> كوع لحام 5" جدول80 | G41: 5 | J41: =IFERROR(VLOOKUP(E41,'كود وجرد'!$E$5:$G$2609,3,0)+(G41+I41)-H41,"") -> 5 | L41: =الجدول1[[#This Row],[سعر الوحدة]]*الجدول1[[#This Row],[الكمية]] -> 0 | N41: =IFERROR(VLOOKUP(M41,'كود وجرد'!M40:N10036,2,0),"") -> 
D42: 2018-04-17 | E42: 137 | F42: =IFERROR(VLOOKUP(E42,'كود وجرد'!$E$5:$F$10000,2,0),"") -> كوع لحام 6" جدول80 | G42: 5 | J42: =IFERROR(VLOOKUP(E42,'كود وجرد'!$E$5:$G$2609,3,0)+(G42+I42)-H42,"") -> 5 | L42: =الجدول1[[#This Row],[سعر الوحدة]]*الجدول1[[#This Row],[الكمية]] -> 0 | N42: =IFERROR(VLOOKUP(M42,'كود وجرد'!M41:N10037,2,0),"") -> 
D43: 2018-01-01 | E43: 138 | F43: =IFERROR(VLOOKUP(E43,'كود وجرد'!$E$5:$F$10000,2,0),"") -> ولد لحام ½" جدول40 | G43: 6 | J43: =IFERROR(VLOOKUP(E43,'كود وجرد'!$E$5:$G$2609,3,0)+(G43+I43)-H43,"") -> 6 | L43: =الجدول1[[#This Row],[سعر الوحدة]]*الجدول1[[#This Row],[الكمية]] -> 0 | N43: =IFERROR(VLOOKUP(M43,'كود وجرد'!M42:N10038,2,0),"") -> 
D44: 2018-01-01 | E44: 139 | F44: =IFERROR(VLOOKUP(E44,'كود وجرد'!$E$5:$F$10000,2,0),"") -> ولد لحام ¾" جدول40 | G44: 13 | J44: =IFERROR(VLOOKUP(E44,'كود وجرد'!$E$5:$G$2609,3,0)+(G44+I44)-H44,"") -> 13 | L44: =الجدول1[[#This Row],[سعر الوحدة]]*الجدول1[[#This Row],[الكمية]] -> 0 | N44: =IFERROR(VLOOKUP(M44,'كود وجرد'!M43:N10039,2,0),"") -> 
D45: 2018-01-01 | E45: 140 | F45: =IFERROR(VLOOKUP(E45,'كود وجرد'!$E$5:$F$10000,2,0),"") -> ولد لحام 1" جدول40 | G45: 18 | J45: =IFERROR(VLOOKUP(E45,'كود وجرد'!$E$5:$G$2609,3,0)+(G45+I45)-H45,"") -> 18 | L45: =الجدول1[[#This Row],[سعر الوحدة]]*الجدول1[[#This Row],[الكمية]] -> 0 | N45: =IFERROR(VLOOKUP(M45,'كود وجرد'!M44:N10040,2,0),"") -> 
D46: 2018-01-01 | E46: 141 | F46: =IFERROR(VLOOKUP(E46,'كود وجرد'!$E$5:$F$10000,2,0),"") -> ولد لحام ¼1" جدول40 | G46: 70 | J46: =IFERROR(VLOOKUP(E46,'كود وجرد'!$E$5:$G$2609,3,0)+(G46+I46)-H46,"") -> 70 | L46: =الجدول1[[#This Row],[سعر الوحدة]]*الجدول1[[#This Row],[الكمية]] -> 0 | N46: =IFERROR(VLOOKUP(M46,'كود وجرد'!M45:N10041,2,0),"") -> 
D47: 2018-01-01 | E47: 142 | F47: =IFERROR(VLOOKUP(E47,'كود وجرد'!$E$5:$F$10000,2,0),"") -> ولد لحام ½1" جدول40 | G47: 11 | J47: =IFERROR(VLOOKUP(E47,'كود وجرد'!$E$5:$G$2609,3,0)+(G47+I47)-H47,"") -> 11 | L47: =الجدول1[[#This Row],[سعر الوحدة]]*الجدول1[[#This Row],[الكمية]] -> 0 | N47: =IFERROR(VLOOKUP(M47,'كود وجرد'!M46:N10042,2,0),"") -> 
D48: 2018-01-01 | E48: 143 | F48: =IFERROR(VLOOKUP(E48,'كود وجرد'!$E$5:$F$10000,2,0),"") -> ولد لحام 2" جدول40 | G48: 14 | J48: =IFERROR(VLOOKUP(E48,'كود وجرد'!$E$5:$G$2609,3,0)+(G48+I48)-H48,"") -> 14 | L48: =الجدول1[[#This Row],[سعر الوحدة]]*الجدول1[[#This Row],[الكمية]] -> 0 | N48: =IFERROR(VLOOKUP(M48,'كود وجرد'!M47:N10043,2,0),"") -> 
D49: 2018-01-01 | E49: 144 | F49: =IFERROR(VLOOKUP(E49,'كود وجرد'!$E$5:$F$10000,2,0),"") -> ولد لحام ½2" جدول40 | G49: 3 | J49: =IFERROR(VLOOKUP(E49,'كود وجرد'!$E$5:$G$2609,3,0)+(G49+I49)-H49,"") -> 3 | L49: =الجدول1[[#This Row],[سعر الوحدة]]*الجدول1[[#This Row],[الكمية]] -> 0 | N49: =IFERROR(VLOOKUP(M49,'كود وجرد'!M48:N10044,2,0),"") -> 
D50: 2018-01-01 | E50: 145 | F50: =IFERROR(VLOOKUP(E50,'كود وجرد'!$E$5:$F$10000,2,0),"") -> ولد لحام 3" جدول40 | G50: 10 | J50: =IFERROR(VLOOKUP(E50,'كود وجرد'!$E$5:$G$2609,3,0)+(G50+I50)-H50,"") -> 10 | L50: =الجدول1[[#This Row],[سعر الوحدة]]*الجدول1[[#This Row],[الكمية]] -> 0 | N50: =IFERROR(VLOOKUP(M50,'كود وجرد'!M49:N10045,2,0),"") -> 
D51: 2018-04-17 | E51: 146 | F51: =IFERROR(VLOOKUP(E51,'كود وجرد'!$E$5:$F$10000,2,0),"") -> ته لحام ½" جدول40 | G51: 26 | J51: =IFERROR(VLOOKUP(E51,'كود وجرد'!$E$5:$G$2609,3,0)+(G51+I51)-H51,"") -> 26 | L51: =الجدول1[[#This Row],[سعر الوحدة]]*الجدول1[[#This Row],[الكمية]] -> 0 | N51: =IFERROR(VLOOKUP(M51,'كود وجرد'!M50:N10046,2,0),"") -> 
D52: 2018-04-17 | E52: 147 | F52: =IFERROR(VLOOKUP(E52,'كود وجرد'!$E$5:$F$10000,2,0),"") -> ته لحام ¾" جدول40 | G52: 32 | J52: =IFERROR(VLOOKUP(E52,'كود وجرد'!$E$5:$G$2609,3,0)+(G52+I52)-H52,"") -> 32 | L52: =الجدول1[[#This Row],[سعر الوحدة]]*الجدول1[[#This Row],[الكمية]] -> 0 | N52: =IFERROR(VLOOKUP(M52,'كود وجرد'!M51:N10047,2,0),"") -> 
D53: 2018-04-17 | E53: 148 | F53: =IFERROR(VLOOKUP(E53,'كود وجرد'!$E$5:$F$10000,2,0),"") -> ته لحام 1" جدول40 | G53: 42 | J53: =IFERROR(VLOOKUP(E53,'كود وجرد'!$E$5:$G$2609,3,0)+(G53+I53)-H53,"") -> 42 | L53: =الجدول1[[#This Row],[سعر الوحدة]]*الجدول1[[#This Row],[الكمية]] -> 0 | N53: =IFERROR(VLOOKUP(M53,'كود وجرد'!M52:N10048,2,0),"") -> 
D54: 2018-04-17 | E54: 149 | F54: =IFERROR(VLOOKUP(E54,'كود وجرد'!$E$5:$F$10000,2,0),"") -> ته لحام ¼1" جدول40 | G54: 28 | J54: =IFERROR(VLOOKUP(E54,'كود وجرد'!$E$5:$G$2609,3,0)+(G54+I54)-H54,"") -> 28 | L54: =الجدول1[[#This Row],[سعر الوحدة]]*الجدول1[[#This Row],[الكمية]] -> 0 | N54: =IFERROR(VLOOKUP(M54,'كود وجرد'!M53:N10049,2,0),"") -> 
D55: 2018-04-17 | E55: 150 | F55: =IFERROR(VLOOKUP(E55,'كود وجرد'!$E$5:$F$10000,2,0),"") -> ته لحام ½1" جدول40 | G55: 21 | J55: =IFERROR(VLOOKUP(E55,'كود وجرد'!$E$5:$G$2609,3,0)+(G55+I55)-H55,"") -> 21 | L55: =الجدول1[[#This Row],[سعر الوحدة]]*الجدول1[[#This Row],[الكمية]] -> 0 | N55: =IFERROR(VLOOKUP(M55,'كود وجرد'!M54:N10050,2,0),"") -> 
D56: 2018-04-17 | E56: 151 | F56: =IFERROR(VLOOKUP(E56,'كود وجرد'!$E$5:$F$10000,2,0),"") -> ته لحام 2" جدول40 | G56: 23 | J56: =IFERROR(VLOOKUP(E56,'كود وجرد'!$E$5:$G$2609,3,0)+(G56+I56)-H56,"") -> 23 | L56: =الجدول1[[#This Row],[سعر الوحدة]]*الجدول1[[#This Row],[الكمية]] -> 0 | N56: =IFERROR(VLOOKUP(M56,'كود وجرد'!M55:N10051,2,0),"") -> 
D57: 2018-04-17 | E57: 152 | F57: =IFERROR(VLOOKUP(E57,'كود وجرد'!$E$5:$F$10000,2,0),"") -> ته لحام ½2" جدول40 | G57: 18 | J57: =IFERROR(VLOOKUP(E57,'كود وجرد'!$E$5:$G$2609,3,0)+(G57+I57)-H57,"") -> 18 | L57: =الجدول1[[#This Row],[سعر الوحدة]]*الجدول1[[#This Row],[الكمية]] -> 0 | N57: =IFERROR(VLOOKUP(M57,'كود وجرد'!M56:N10052,2,0),"") -> 
D58: 2018-04-17 | E58: 153 | F58: =IFERROR(VLOOKUP(E58,'كود وجرد'!$E$5:$F$10000,2,0),"") -> ته لحام 3" جدول40 | G58: 30 | J58: =IFERROR(VLOOKUP(E58,'كود وجرد'!$E$5:$G$2609,3,0)+(G58+I58)-H58,"") -> 30 | L58: =الجدول1[[#This Row],[سعر الوحدة]]*الجدول1[[#This Row],[الكمية]] -> 0 | N58: =IFERROR(VLOOKUP(M58,'كود وجرد'!M57:N10053,2,0),"") -> 
D59: 2018-04-17 | E59: 154 | F59: =IFERROR(VLOOKUP(E59,'كود وجرد'!$E$5:$F$10000,2,0),"") -> ته لحام 4" جدول40 | G59: 9 | J59: =IFERROR(VLOOKUP(E59,'كود وجرد'!$E$5:$G$2609,3,0)+(G59+I59)-H59,"") -> 9 | L59: =الجدول1[[#This Row],[سعر الوحدة]]*الجدول1[[#This Row],[الكمية]] -> 0 | N59: =IFERROR(VLOOKUP(M59,'كود وجرد'!M58:N10054,2,0),"") -> 
D60: 2018-04-17 | E60: 155 | F60: =IFERROR(VLOOKUP(E60,'كود وجرد'!$E$5:$F$10000,2,0),"") -> ته لحام 5" جدول40 | G60: 5 | J60: =IFERROR(VLOOKUP(E60,'كود وجرد'!$E$5:$G$2609,3,0)+(G60+I60)-H60,"") -> 5 | L60: =الجدول1[[#This Row],[سعر الوحدة]]*الجدول1[[#This Row],[الكمية]] -> 0 | N60: =IFERROR(VLOOKUP(M60,'كود وجرد'!M59:N10055,2,0),"") -> 
D61: 2018-04-17 | E61: 156 | F61: =IFERROR(VLOOKUP(E61,'كود وجرد'!$E$5:$F$10000,2,0),"") -> ته لحام 6" جدول40 | G61: 5 | J61: =IFERROR(VLOOKUP(E61,'كود وجرد'!$E$5:$G$2609,3,0)+(G61+I61)-H61,"") -> 5 | L61: =الجدول1[[#This Row],[سعر الوحدة]]*الجدول1[[#This Row],[الكمية]] -> 0 | N61: =IFERROR(VLOOKUP(M61,'كود وجرد'!M60:N10056,2,0),"") -> 
D62: 2018-04-17 | E62: 157 | F62: =IFERROR(VLOOKUP(E62,'كود وجرد'!$E$5:$F$10000,2,0),"") -> ته لحام 8" جدول40 | G62: 5 | J62: =IFERROR(VLOOKUP(E62,'كود وجرد'!$E$5:$G$2609,3,0)+(G62+I62)-H62,"") -> 5 | L62: =الجدول1[[#This Row],[سعر الوحدة]]*الجدول1[[#This Row],[الكمية]] -> 0 | N62: =IFERROR(VLOOKUP(M62,'كود وجرد'!M61:N10057,2,0),"") -> 
D63: 2018-04-17 | E63: 158 | F63: =IFERROR(VLOOKUP(E63,'كود وجرد'!$E$5:$F$10000,2,0),"") -> ته لحام ½2" جدول80 | G63: 5 | J63: =IFERROR(VLOOKUP(E63,'كود وجرد'!$E$5:$G$2609,3,0)+(G63+I63)-H63,"") -> 5 | L63: =الجدول1[[#This Row],[سعر الوحدة]]*الجدول1[[#This Row],[الكمية]] -> 0 | N63: =IFERROR(VLOOKUP(M63,'كود وجرد'!M62:N10058,2,0),"") -> 
D64: 2018-04-17 | E64: 159 | F64: =IFERROR(VLOOKUP(E64,'كود وجرد'!$E$5:$F$10000,2,0),"") -> مسلوب لحام محلي ¾"*½" ج 40 | G64: 10 | J64: =IFERROR(VLOOKUP(E64,'كود وجرد'!$E$5:$G$2609,3,0)+(G64+I64)-H64,"") -> 10 | L64: =الجدول1[[#This Row],[سعر الوحدة]]*الجدول1[[#This Row],[الكمية]] -> 0 | N64: =IFERROR(VLOOKUP(M64,'كود وجرد'!M63:N10059,2,0),"") -> 
D65: 2018-04-17 | E65: 160 | F65: =IFERROR(VLOOKUP(E65,'كود وجرد'!$E$5:$F$10000,2,0),"") -> مسلوب لحام محلي 1"*¾" ج40 | G65: 15 | J65: =IFERROR(VLOOKUP(E65,'كود وجرد'!$E$5:$G$2609,3,0)+(G65+I65)-H65,"") -> 15 | L65: =الجدول1[[#This Row],[سعر الوحدة]]*الجدول1[[#This Row],[الكمية]] -> 0 | N65: =IFERROR(VLOOKUP(M65,'كود وجرد'!M64:N10060,2,0),"") -> 
D66: 2018-04-17 | E66: 161 | F66: =IFERROR(VLOOKUP(E66,'كود وجرد'!$E$5:$F$10000,2,0),"") -> مسلوب لحام محلي 1"*½" ج40 | G66: 19 | J66: =IFERROR(VLOOKUP(E66,'كود وجرد'!$E$5:$G$2609,3,0)+(G66+I66)-H66,"") -> 19 | L66: =الجدول1[[#This Row],[سعر الوحدة]]*الجدول1[[#This Row],[الكمية]] -> 0 | N66: =IFERROR(VLOOKUP(M66,'كود وجرد'!M65:N10061,2,0),"") -> 
D67: 2018-04-17 | E67: 162 | F67: =IFERROR(VLOOKUP(E67,'كود وجرد'!$E$5:$F$10000,2,0),"") -> مسلوب لحام محلي ¼1"*1" ج 40 | G67: 8 | J67: =IFERROR(VLOOKUP(E67,'كود وجرد'!$E$5:$G$2609,3,0)+(G67+I67)-H67,"") -> 8 | L67: =الجدول1[[#This Row],[سعر الوحدة]]*الجدول1[[#This Row],[الكمية]] -> 0 | N67: =IFERROR(VLOOKUP(M67,'كود وجرد'!M66:N10062,2,0),"") -> 
D68: 2018-04-17 | E68: 163 | F68: =IFERROR(VLOOKUP(E68,'كود وجرد'!$E$5:$F$10000,2,0),"") -> مسلوب لحام محلي ¼1"*¾" ج40 | G68: 6 | J68: =IFERROR(VLOOKUP(E68,'كود وجرد'!$E$5:$G$2609,3,0)+(G68+I68)-H68,"") -> 6 | L68: =الجدول1[[#This Row],[سعر الوحدة]]*الجدول1[[#This Row],[الكمية]] -> 0 | N68: =IFERROR(VLOOKUP(M68,'كود وجرد'!M67:N10063,2,0),"") -> 
D69: 2018-04-17 | E69: 164 | F69: =IFERROR(VLOOKUP(E69,'كود وجرد'!$E$5:$F$10000,2,0),"") -> مسلوب لحام محلي ¼1"*½" ج 40 | G69: 10 | J69: =IFERROR(VLOOKUP(E69,'كود وجرد'!$E$5:$G$2609,3,0)+(G69+I69)-H69,"") -> 10 | L69: =الجدول1[[#This Row],[سعر الوحدة]]*الجدول1[[#This Row],[الكمية]] -> 0 | N69: =IFERROR(VLOOKUP(M69,'كود وجرد'!M68:N10064,2,0),"") -> 
D70: 2018-04-17 | E70: 165 | F70: =IFERROR(VLOOKUP(E70,'كود وجرد'!$E$5:$F$10000,2,0),"") -> مسلوب لحام محلي ½1"*¼1" ج 40 | G70: 23 | J70: =IFERROR(VLOOKUP(E70,'كود وجرد'!$E$5:$G$2609,3,0)+(G70+I70)-H70,"") -> 23 | L70: =الجدول1[[#This Row],[سعر الوحدة]]*الجدول1[[#This Row],[الكمية]] -> 0 | N70: =IFERROR(VLOOKUP(M70,'كود وجرد'!M69:N10065,2,0),"") -> 
D71: 2018-04-17 | E71: 166 | F71: =IFERROR(VLOOKUP(E71,'كود وجرد'!$E$5:$F$10000,2,0),"") -> مسلوب لحام محلي ½1" *1" ج 40 | G71: 35 | J71: =IFERROR(VLOOKUP(E71,'كود وجرد'!$E$5:$G$2609,3,0)+(G71+I71)-H71,"") -> 35 | L71: =الجدول1[[#This Row],[سعر الوحدة]]*الجدول1[[#This Row],[الكمية]] -> 0 | N71: =IFERROR(VLOOKUP(M71,'كود وجرد'!M70:N10066,2,0),"") -> 
D72: 2018-04-17 | E72: 167 | F72: =IFERROR(VLOOKUP(E72,'كود وجرد'!$E$5:$F$10000,2,0),"") -> مسلوب لحام محلي ½1"*¾" ج40 | G72: 19 | J72: =IFERROR(VLOOKUP(E72,'كود وجرد'!$E$5:$G$2609,3,0)+(G72+I72)-H72,"") -> 19 | L72: =الجدول1[[#This Row],[سعر الوحدة]]*الجدول1[[#This Row],[الكمية]] -> 0 | N72: =IFERROR(VLOOKUP(M72,'كود وجرد'!M71:N10067,2,0),"") -> 
D73: 2018-04-17 | E73: 168 | F73: =IFERROR(VLOOKUP(E73,'كود وجرد'!$E$5:$F$10000,2,0),"") -> مسلوب لحام محلي ½1"*½" ج40 | G73: 9 | J73: =IFERROR(VLOOKUP(E73,'كود وجرد'!$E$5:$G$2609,3,0)+(G73+I73)-H73,"") -> 9 | L73: =الجدول1[[#This Row],[سعر الوحدة]]*الجدول1[[#This Row],[الكمية]] -> 0 | N73: =IFERROR(VLOOKUP(M73,'كود وجرد'!M72:N10068,2,0),"") -> 
D74: 2018-04-17 | E74: 169 | F74: =IFERROR(VLOOKUP(E74,'كود وجرد'!$E$5:$F$10000,2,0),"") -> مسلوب لحام محلي 2"*½1" ج40 | G74: 25 | J74: =IFERROR(VLOOKUP(E74,'كود وجرد'!$E$5:$G$2609,3,0)+(G74+I74)-H74,"") -> 25 | L74: =الجدول1[[#This Row],[سعر الوحدة]]*الجدول1[[#This Row],[الكمية]] -> 0 | N74: =IFERROR(VLOOKUP(M74,'كود وجرد'!M73:N10069,2,0),"") -> 
D75: 2018-04-17 | E75: 170 | F75: =IFERROR(VLOOKUP(E75,'كود وجرد'!$E$5:$F$10000,2,0),"") -> مسلوب لحام محلي 2"*¼1" ج40 | G75: 12 | J75: =IFERROR(VLOOKUP(E75,'كود وجرد'!$E$5:$G$2609,3,0)+(G75+I75)-H75,"") -> 12 | L75: =الجدول1[[#This Row],[سعر الوحدة]]*الجدول1[[#This Row],[الكمية]] -> 0 | N75: =IFERROR(VLOOKUP(M75,'كود وجرد'!M74:N10070,2,0),"") -> 
D76: 2018-04-17 | E76: 171 | F76: =IFERROR(VLOOKUP(E76,'كود وجرد'!$E$5:$F$10000,2,0),"") -> مسلوب لحام محلي2"*1 " ج40 | G76: 18 | J76: =IFERROR(VLOOKUP(E76,'كود وجرد'!$E$5:$G$2609,3,0)+(G76+I76)-H76,"") -> 18 | L76: =الجدول1[[#This Row],[سعر الوحدة]]*الجدول1[[#This Row],[الكمية]] -> 0 | N76: =IFERROR(VLOOKUP(M76,'كود وجرد'!M75:N10071,2,0),"") -> 
D77: 2018-04-17 | E77: 172 | F77: =IFERROR(VLOOKUP(E77,'كود وجرد'!$E$5:$F$10000,2,0),"") -> مسلوب لحام محلي 2"*¾" ج40 | G77: 9 | J77: =IFERROR(VLOOKUP(E77,'كود وجرد'!$E$5:$G$2609,3,0)+(G77+I77)-H77,"") -> 9 | L77: =الجدول1[[#This Row],[سعر الوحدة]]*الجدول1[[#This Row],[الكمية]] -> 0 | N77: =IFERROR(VLOOKUP(M77,'كود وجرد'!M76:N10072,2,0),"") -> 
D78: 2018-01-01 | E78: 173 | F78: =IFERROR(VLOOKUP(E78,'كود وجرد'!$E$5:$F$10000,2,0),"") -> مسلوب لحام محلي 2"*½" ج40 | G78: 8 | J78: =IFERROR(VLOOKUP(E78,'كود وجرد'!$E$5:$G$2609,3,0)+(G78+I78)-H78,"") -> 8 | L78: =الجدول1[[#This Row],[سعر الوحدة]]*الجدول1[[#This Row],[الكمية]] -> 0 | N78: =IFERROR(VLOOKUP(M78,'كود وجرد'!M77:N10073,2,0),"") -> 
D79: 2018-01-01 | E79: 174 | F79: =IFERROR(VLOOKUP(E79,'كود وجرد'!$E$5:$F$10000,2,0),"") -> مسلوب لحام محلي ½2"*2" ج40 | G79: 34 | J79: =IFERROR(VLOOKUP(E79,'كود وجرد'!$E$5:$G$2609,3,0)+(G79+I79)-H79,"") -> 34 | L79: =الجدول1[[#This Row],[سعر الوحدة]]*الجدول1[[#This Row],[الكمية]] -> 0 | N79: =IFERROR(VLOOKUP(M79,'كود وجرد'!M78:N10074,2,0),"") -> 
D80: 2018-01-01 | E80: 175 | F80: =IFERROR(VLOOKUP(E80,'كود وجرد'!$E$5:$F$10000,2,0),"") -> مسلوب لحام محلي ½2"*½1" ج40 | G80: 33 | J80: =IFERROR(VLOOKUP(E80,'كود وجرد'!$E$5:$G$2609,3,0)+(G80+I80)-H80,"") -> 33 | L80: =الجدول1[[#This Row],[سعر الوحدة]]*الجدول1[[#This Row],[الكمية]] -> 0 | N80: =IFERROR(VLOOKUP(M80,'كود وجرد'!M79:N10075,2,0),"") -> 
D81: 2018-01-01 | E81: 176 | F81: =IFERROR(VLOOKUP(E81,'كود وجرد'!$E$5:$F$10000,2,0),"") -> مسلوب لحام محلي ½2"*¼1" ج40 | G81: 20 | J81: =IFERROR(VLOOKUP(E81,'كود وجرد'!$E$5:$G$2609,3,0)+(G81+I81)-H81,"") -> 20 | L81: =الجدول1[[#This Row],[سعر الوحدة]]*الجدول1[[#This Row],[الكمية]] -> 0 | N81: =IFERROR(VLOOKUP(M81,'كود وجرد'!M80:N10076,2,0),"") -> 
D82: 2018-01-01 | E82: 177 | F82: =IFERROR(VLOOKUP(E82,'كود وجرد'!$E$5:$F$10000,2,0),"") -> مسلوب لحام محلي ½2"*1 " ج40 | G82: 28 | J82: =IFERROR(VLOOKUP(E82,'كود وجرد'!$E$5:$G$2609,3,0)+(G82+I82)-H82,"") -> 28 | L82: =الجدول1[[#This Row],[سعر الوحدة]]*الجدول1[[#This Row],[الكمية]] -> 0 | N82: =IFERROR(VLOOKUP(M82,'كود وجرد'!M81:N10077,2,0),"") -> 
D83: 2018-01-01 | E83: 178 | F83: =IFERROR(VLOOKUP(E83,'كود وجرد'!$E$5:$F$10000,2,0),"") -> مسلوب لحام محلي 3"*½2" ج40 | G83: 15 | J83: =IFERROR(VLOOKUP(E83,'كود وجرد'!$E$5:$G$2609,3,0)+(G83+I83)-H83,"") -> 15 | L83: =الجدول1[[#This Row],[سعر الوحدة]]*الجدول1[[#This Row],[الكمية]] -> 0 | N83: =IFERROR(VLOOKUP(M83,'كود وجرد'!M82:N10078,2,0),"") -> 
D84: 2018-01-01 | E84: 179 | F84: =IFERROR(VLOOKUP(E84,'كود وجرد'!$E$5:$F$10000,2,0),"") -> مسلوب لحام محلي 3"* 2" ج40 | G84: 13 | J84: =IFERROR(VLOOKUP(E84,'كود وجرد'!$E$5:$G$2609,3,0)+(G84+I84)-H84,"") -> 13 | L84: =الجدول1[[#This Row],[سعر الوحدة]]*الجدول1[[#This Row],[الكمية]] -> 0 | N84: =IFERROR(VLOOKUP(M84,'كود وجرد'!M83:N10079,2,0),"") -> 
D85: 2018-01-01 | E85: 180 | F85: =IFERROR(VLOOKUP(E85,'كود وجرد'!$E$5:$F$10000,2,0),"") -> مسلوب لحام 3"*½1" ج40 | G85: 8 | J85: =IFERROR(VLOOKUP(E85,'كود وجرد'!$E$5:$G$2609,3,0)+(G85+I85)-H85,"") -> 8 | L85: =الجدول1[[#This Row],[سعر الوحدة]]*الجدول1[[#This Row],[الكمية]] -> 0 | N85: =IFERROR(VLOOKUP(M85,'كود وجرد'!M84:N10080,2,0),"") -> 
D86: 2018-01-01 | E86: 181 | F86: =IFERROR(VLOOKUP(E86,'كود وجرد'!$E$5:$F$10000,2,0),"") -> مسلوب لحام 3"*¼1" ج40 | G86: 5 | J86: =IFERROR(VLOOKUP(E86,'كود وجرد'!$E$5:$G$2609,3,0)+(G86+I86)-H86,"") -> 5 | L86: =الجدول1[[#This Row],[سعر الوحدة]]*الجدول1[[#This Row],[الكمية]] -> 0 | N86: =IFERROR(VLOOKUP(M86,'كود وجرد'!M85:N10081,2,0),"") -> 
D87: 2018-01-01 | E87: 182 | F87: =IFERROR(VLOOKUP(E87,'كود وجرد'!$E$5:$F$10000,2,0),"") -> مسلوب لحام 3" *1" ج40 | G87: 8 | J87: =IFERROR(VLOOKUP(E87,'كود وجرد'!$E$5:$G$2609,3,0)+(G87+I87)-H87,"") -> 8 | L87: =الجدول1[[#This Row],[سعر الوحدة]]*الجدول1[[#This Row],[الكمية]] -> 0 | N87: =IFERROR(VLOOKUP(M87,'كود وجرد'!M86:N10082,2,0),"") -> 
D88: 2018-01-01 | E88: 183 | F88: =IFERROR(VLOOKUP(E88,'كود وجرد'!$E$5:$F$10000,2,0),"") -> مسلوب لحام 4"*3" ج40 | G88: 24 | J88: =IFERROR(VLOOKUP(E88,'كود وجرد'!$E$5:$G$2609,3,0)+(G88+I88)-H88,"") -> 24 | L88: =الجدول1[[#This Row],[سعر الوحدة]]*الجدول1[[#This Row],[الكمية]] -> 0 | N88: =IFERROR(VLOOKUP(M88,'كود وجرد'!M87:N10083,2,0),"") -> 
D89: 2018-01-01 | E89: 184 | F89: =IFERROR(VLOOKUP(E89,'كود وجرد'!$E$5:$F$10000,2,0),"") -> مسلوب لحام 4"*½2" ج40 | G89: 18 | J89: =IFERROR(VLOOKUP(E89,'كود وجرد'!$E$5:$G$2609,3,0)+(G89+I89)-H89,"") -> 18 | L89: =الجدول1[[#This Row],[سعر الوحدة]]*الجدول1[[#This Row],[الكمية]] -> 0 | N89: =IFERROR(VLOOKUP(M89,'كود وجرد'!M88:N10084,2,0),"") -> 
D90: 2018-01-01 | E90: 185 | F90: =IFERROR(VLOOKUP(E90,'كود وجرد'!$E$5:$F$10000,2,0),"") -> مسلوب لحام 4" *2" ج40 | G90: 17 | J90: =IFERROR(VLOOKUP(E90,'كود وجرد'!$E$5:$G$2609,3,0)+(G90+I90)-H90,"") -> 17 | L90: =الجدول1[[#This Row],[سعر الوحدة]]*الجدول1[[#This Row],[الكمية]] -> 0 | N90: =IFERROR(VLOOKUP(M90,'كود وجرد'!M89:N10085,2,0),"") -> 
D91: 2018-01-01 | E91: 186 | F91: =IFERROR(VLOOKUP(E91,'كود وجرد'!$E$5:$F$10000,2,0),"") -> مسلوب لحام 5"*4" ج40 | G91: 9 | J91: =IFERROR(VLOOKUP(E91,'كود وجرد'!$E$5:$G$2609,3,0)+(G91+I91)-H91,"") -> 9 | L91: =الجدول1[[#This Row],[سعر الوحدة]]*الجدول1[[#This Row],[الكمية]] -> 0 | N91: =IFERROR(VLOOKUP(M91,'كود وجرد'!M90:N10086,2,0),"") -> 
D92: 2018-01-01 | E92: 187 | F92: =IFERROR(VLOOKUP(E92,'كود وجرد'!$E$5:$F$10000,2,0),"") -> مسلوب لحام 5"*3" ج40 | G92: 8 | J92: =IFERROR(VLOOKUP(E92,'كود وجرد'!$E$5:$G$2609,3,0)+(G92+I92)-H92,"") -> 8 | L92: =الجدول1[[#This Row],[سعر الوحدة]]*الجدول1[[#This Row],[الكمية]] -> 0 | N92: =IFERROR(VLOOKUP(M92,'كود وجرد'!M91:N10087,2,0),"") -> 
D93: 2018-01-01 | E93: 188 | F93: =IFERROR(VLOOKUP(E93,'كود وجرد'!$E$5:$F$10000,2,0),"") -> مسلوب لحام 6"*5" ج40 | G93: 8 | J93: =IFERROR(VLOOKUP(E93,'كود وجرد'!$E$5:$G$2609,3,0)+(G93+I93)-H93,"") -> 8 | L93: =الجدول1[[#This Row],[سعر الوحدة]]*الجدول1[[#This Row],[الكمية]] -> 0 | N93: =IFERROR(VLOOKUP(M93,'كود وجرد'!M92:N10088,2,0),"") -> 
D94: 2018-01-01 | E94: 189 | F94: =IFERROR(VLOOKUP(E94,'كود وجرد'!$E$5:$F$10000,2,0),"") -> مسلوب لحام 6"*4" ج40 | G94: 10 | J94: =IFERROR(VLOOKUP(E94,'كود وجرد'!$E$5:$G$2609,3,0)+(G94+I94)-H94,"") -> 10 | L94: =الجدول1[[#This Row],[سعر الوحدة]]*الجدول1[[#This Row],[الكمية]] -> 0 | N94: =IFERROR(VLOOKUP(M94,'كود وجرد'!M93:N10089,2,0),"") -> 
D95: 2018-01-01 | E95: 190 | F95: =IFERROR(VLOOKUP(E95,'كود وجرد'!$E$5:$F$10000,2,0),"") -> مسلوب لحام 6"*3" ج40 | G95: 5 | J95: =IFERROR(VLOOKUP(E95,'كود وجرد'!$E$5:$G$2609,3,0)+(G95+I95)-H95,"") -> 5 | L95: =الجدول1[[#This Row],[سعر الوحدة]]*الجدول1[[#This Row],[الكمية]] -> 0 | N95: =IFERROR(VLOOKUP(M95,'كود وجرد'!M94:N10090,2,0),"") -> 
D96: 2018-01-01 | E96: 191 | F96: =IFERROR(VLOOKUP(E96,'كود وجرد'!$E$5:$F$10000,2,0),"") -> مسلوب لحام 6"*½2" ج40 | G96: 9 | J96: =IFERROR(VLOOKUP(E96,'كود وجرد'!$E$5:$G$2609,3,0)+(G96+I96)-H96,"") -> 9 | L96: =الجدول1[[#This Row],[سعر الوحدة]]*الجدول1[[#This Row],[الكمية]] -> 0 | N96: =IFERROR(VLOOKUP(M96,'كود وجرد'!M95:N10091,2,0),"") -> 
D97: 2018-01-01 | E97: 192 | F97: =IFERROR(VLOOKUP(E97,'كود وجرد'!$E$5:$F$10000,2,0),"") -> مسلوب لحام 8"*6" ج40 | G97: 3 | J97: =IFERROR(VLOOKUP(E97,'كود وجرد'!$E$5:$G$2609,3,0)+(G97+I97)-H97,"") -> 3 | L97: =الجدول1[[#This Row],[سعر الوحدة]]*الجدول1[[#This Row],[الكمية]] -> 0 | N97: =IFERROR(VLOOKUP(M97,'كود وجرد'!M96:N10092,2,0),"") -> 
D98: 2018-01-01 | E98: 193 | F98: =IFERROR(VLOOKUP(E98,'كود وجرد'!$E$5:$F$10000,2,0),"") -> مسلوب لحام 8"*5" ج40 | G98: 5 | J98: =IFERROR(VLOOKUP(E98,'كود وجرد'!$E$5:$G$2609,3,0)+(G98+I98)-H98,"") -> 5 | L98: =الجدول1[[#This Row],[سعر الوحدة]]*الجدول1[[#This Row],[الكمية]] -> 0 | N98: =IFERROR(VLOOKUP(M98,'كود وجرد'!M97:N10093,2,0),"") -> 
D99: 2018-01-01 | E99: 194 | F99: =IFERROR(VLOOKUP(E99,'كود وجرد'!$E$5:$F$10000,2,0),"") -> مسلوب لحام 8"*4" ج40 | G99: 2 | J99: =IFERROR(VLOOKUP(E99,'كود وجرد'!$E$5:$G$2609,3,0)+(G99+I99)-H99,"") -> 2 | L99: =الجدول1[[#This Row],[سعر الوحدة]]*الجدول1[[#This Row],[الكمية]] -> 0 | N99: =IFERROR(VLOOKUP(M99,'كود وجرد'!M98:N10094,2,0),"") -> 
D100: 2018-01-01 | E100: 195 | F100: =IFERROR(VLOOKUP(E100,'كود وجرد'!$E$5:$F$10000,2,0),"") -> كاب لحام محلي ½" ج40 | G100: 25 | J100: =IFERROR(VLOOKUP(E100,'كود وجرد'!$E$5:$G$2609,3,0)+(G100+I100)-H100,"") -> 25 | L100: =الجدول1[[#This Row],[سعر الوحدة]]*الجدول1[[#This Row],[الكمية]] -> 0 | N100: =IFERROR(VLOOKUP(M100,'كود وجرد'!M99:N10095,2,0),"") -> 
D101: 2018-01-01 | E101: 196 | F101: =IFERROR(VLOOKUP(E101,'كود وجرد'!$E$5:$F$10000,2,0),"") -> كاب لحام محلي ¾" ج40 | G101: 9 | J101: =IFERROR(VLOOKUP(E101,'كود وجرد'!$E$5:$G$2609,3,0)+(G101+I101)-H101,"") -> 9 | L101: =الجدول1[[#This Row],[سعر الوحدة]]*الجدول1[[#This Row],[الكمية]] -> 0 | N101: =IFERROR(VLOOKUP(M101,'كود وجرد'!M100:N10096,2,0),"") -> 
D102: 2018-01-01 | E102: 197 | F102: =IFERROR(VLOOKUP(E102,'كود وجرد'!$E$5:$F$10000,2,0),"") -> كاب لحام محلي 1" ج40 | G102: 3 | J102: =IFERROR(VLOOKUP(E102,'كود وجرد'!$E$5:$G$2609,3,0)+(G102+I102)-H102,"") -> 3 | L102: =الجدول1[[#This Row],[سعر الوحدة]]*الجدول1[[#This Row],[الكمية]] -> 0 | N102: =IFERROR(VLOOKUP(M102,'كود وجرد'!M101:N10097,2,0),"") -> 
D103: 2018-01-01 | E103: 198 | F103: =IFERROR(VLOOKUP(E103,'كود وجرد'!$E$5:$F$10000,2,0),"") -> كاب لحام محلي ¼1" ج40 | G103: 19 | J103: =IFERROR(VLOOKUP(E103,'كود وجرد'!$E$5:$G$2609,3,0)+(G103+I103)-H103,"") -> 19 | L103: =الجدول1[[#This Row],[سعر الوحدة]]*الجدول1[[#This Row],[الكمية]] -> 0 | N103: =IFERROR(VLOOKUP(M103,'كود وجرد'!M102:N10098,2,0),"") -> 
D104: 2018-01-01 | E104: 199 | F104: =IFERROR(VLOOKUP(E104,'كود وجرد'!$E$5:$F$10000,2,0),"") -> كاب لحام محلي ½1" ج40 | G104: 13 | J104: =IFERROR(VLOOKUP(E104,'كود وجرد'!$E$5:$G$2609,3,0)+(G104+I104)-H104,"") -> 13 | L104: =الجدول1[[#This Row],[سعر الوحدة]]*الجدول1[[#This Row],[الكمية]] -> 0 | N104: =IFERROR(VLOOKUP(M104,'كود وجرد'!M103:N10099,2,0),"") -> 
J105: =IFERROR(VLOOKUP(E105,'كود وجرد'!$E$5:$G$2609,3,0)+(G105+I105)-H105,"") ->  | L105: =الجدول1[[#This Row],[سعر الوحدة]]*الجدول1[[#This Row],[الكمية]] -> 
J106: =IFERROR(VLOOKUP(E106,'كود وجرد'!$E$5:$G$2609,3,0)+(G106+I106)-H106,"") ->  | L106: =الجدول1[[#This Row],[سعر الوحدة]]*الجدول1[[#This Row],[الكمية]] -> 
J107: =IFERROR(VLOOKUP(E107,'كود وجرد'!$E$5:$G$2609,3,0)+(G107+I107)-H107,"") ->  | L107: =الجدول1[[#This Row],[سعر الوحدة]]*الجدول1[[#This Row],[الكمية]] -> 
J108: =IFERROR(VLOOKUP(E108,'كود وجرد'!$E$5:$G$2609,3,0)+(G108+I108)-H108,"") ->  | L108: =الجدول1[[#This Row],[سعر الوحدة]]*الجدول1[[#This Row],[الكمية]] -> 
J109: =IFERROR(VLOOKUP(E109,'كود وجرد'!$E$5:$G$2609,3,0)+(G109+I109)-H109,"") ->  | L109: =الجدول1[[#This Row],[سعر الوحدة]]*الجدول1[[#This Row],[الكمية]] -> 
J110: =IFERROR(VLOOKUP(E110,'كود وجرد'!$E$5:$G$2609,3,0)+(G110+I110)-H110,"") ->  | L110: =الجدول1[[#This Row],[سعر الوحدة]]*الجدول1[[#This Row],[الكمية]] -> 
J111: =IFERROR(VLOOKUP(E111,'كود وجرد'!$E$5:$G$2609,3,0)+(G111+I111)-H111,"") ->  | L111: =الجدول1[[#This Row],[سعر الوحدة]]*الجدول1[[#This Row],[الكمية]] -> 
J112: =IFERROR(VLOOKUP(E112,'كود وجرد'!$E$5:$G$2609,3,0)+(G112+I112)-H112,"") ->  | L112: =الجدول1[[#This Row],[سعر الوحدة]]*الجدول1[[#This Row],[الكمية]] -> 
J113: =IFERROR(VLOOKUP(E113,'كود وجرد'!$E$5:$G$2609,3,0)+(G113+I113)-H113,"") ->  | L113: =الجدول1[[#This Row],[سعر الوحدة]]*الجدول1[[#This Row],[الكمية]] -> 
J114: =IFERROR(VLOOKUP(E114,'كود وجرد'!$E$5:$G$2609,3,0)+(G114+I114)-H114,"") ->  | L114: =الجدول1[[#This Row],[سعر الوحدة]]*الجدول1[[#This Row],[الكمية]] -> 
J115: =IFERROR(VLOOKUP(E115,'كود وجرد'!$E$5:$G$2609,3,0)+(G115+I115)-H115,"") ->  | L115: =الجدول1[[#This Row],[سعر الوحدة]]*الجدول1[[#This Row],[الكمية]] -> 
J116: =IFERROR(VLOOKUP(E116,'كود وجرد'!$E$5:$G$2609,3,0)+(G116+I116)-H116,"") ->  | L116: =الجدول1[[#This Row],[سعر الوحدة]]*الجدول1[[#This Row],[الكمية]] -> 
J117: =IFERROR(VLOOKUP(E117,'كود وجرد'!$E$5:$G$2609,3,0)+(G117+I117)-H117,"") ->  | L117: =الجدول1[[#This Row],[سعر الوحدة]]*الجدول1[[#This Row],[الكمية]] -> 
J118: =IFERROR(VLOOKUP(E118,'كود وجرد'!$E$5:$G$2609,3,0)+(G118+I118)-H118,"") ->  | L118: =الجدول1[[#This Row],[سعر الوحدة]]*الجدول1[[#This Row],[الكمية]] -> 
J119: =IFERROR(VLOOKUP(E119,'كود وجرد'!$E$5:$G$2609,3,0)+(G119+I119)-H119,"") ->  | L119: =الجدول1[[#This Row],[سعر الوحدة]]*الجدول1[[#This Row],[الكمية]] -> 
J120: =IFERROR(VLOOKUP(E120,'كود وجرد'!$E$5:$G$2609,3,0)+(G120+I120)-H120,"") ->  | L120: =الجدول1[[#This Row],[سعر الوحدة]]*الجدول1[[#This Row],[الكمية]] -> 
J121: =IFERROR(VLOOKUP(E121,'كود وجرد'!$E$5:$G$2609,3,0)+(G121+I121)-H121,"") ->  | L121: =الجدول1[[#This Row],[سعر الوحدة]]*الجدول1[[#This Row],[الكمية]] -> 
J122: =IFERROR(VLOOKUP(E122,'كود وجرد'!$E$5:$G$2609,3,0)+(G122+I122)-H122,"") ->  | L122: =الجدول1[[#This Row],[سعر الوحدة]]*الجدول1[[#This Row],[الكمية]] -> 
J123: =IFERROR(VLOOKUP(E123,'كود وجرد'!$E$5:$G$2609,3,0)+(G123+I123)-H123,"") ->  | L123: =الجدول1[[#This Row],[سعر الوحدة]]*الجدول1[[#This Row],[الكمية]] -> 
J124: =IFERROR(VLOOKUP(E124,'كود وجرد'!$E$5:$G$2609,3,0)+(G124+I124)-H124,"") ->  | L124: =الجدول1[[#This Row],[سعر الوحدة]]*الجدول1[[#This Row],[الكمية]] -> 
J125: =IFERROR(VLOOKUP(E125,'كود وجرد'!$E$5:$G$2609,3,0)+(G125+I125)-H125,"") ->  | L125: =الجدول1[[#This Row],[سعر الوحدة]]*الجدول1[[#This Row],[الكمية]] -> 
J126: =IFERROR(VLOOKUP(E126,'كود وجرد'!$E$5:$G$2609,3,0)+(G126+I126)-H126,"") ->  | L126: =الجدول1[[#This Row],[سعر الوحدة]]*الجدول1[[#This Row],[الكمية]] -> 
J127: =IFERROR(VLOOKUP(E127,'كود وجرد'!$E$5:$G$2609,3,0)+(G127+I127)-H127,"") ->  | L127: =الجدول1[[#This Row],[سعر الوحدة]]*الجدول1[[#This Row],[الكمية]] -> 
J128: =IFERROR(VLOOKUP(E128,'كود وجرد'!$E$5:$G$2609,3,0)+(G128+I128)-H128,"") ->  | L128: =الجدول1[[#This Row],[سعر الوحدة]]*الجدول1[[#This Row],[الكمية]] -> 
J129: =IFERROR(VLOOKUP(E129,'كود وجرد'!$E$5:$G$2609,3,0)+(G129+I129)-H129,"") ->  | L129: =الجدول1[[#This Row],[سعر الوحدة]]*الجدول1[[#This Row],[الكمية]] -> 
J130: =IFERROR(VLOOKUP(E130,'كود وجرد'!$E$5:$G$2609,3,0)+(G130+I130)-H130,"") ->  | L130: =الجدول1[[#This Row],[سعر الوحدة]]*الجدول1[[#This Row],[الكمية]] -> 
J131: =IFERROR(VLOOKUP(E131,'كود وجرد'!$E$5:$G$2609,3,0)+(G131+I131)-H131,"") ->  | L131: =الجدول1[[#This Row],[سعر الوحدة]]*الجدول1[[#This Row],[الكمية]] -> 
J132: =IFERROR(VLOOKUP(E132,'كود وجرد'!$E$5:$G$2609,3,0)+(G132+I132)-H132,"") ->  | L132: =الجدول1[[#This Row],[سعر الوحدة]]*الجدول1[[#This Row],[الكمية]] -> 
J133: =IFERROR(VLOOKUP(E133,'كود وجرد'!$E$5:$G$2609,3,0)+(G133+I133)-H133,"") ->  | L133: =الجدول1[[#This Row],[سعر الوحدة]]*الجدول1[[#This Row],[الكمية]] -> 
J134: =IFERROR(VLOOKUP(E134,'كود وجرد'!$E$5:$G$2609,3,0)+(G134+I134)-H134,"") ->  | L134: =الجدول1[[#This Row],[سعر الوحدة]]*الجدول1[[#This Row],[الكمية]] -> 
J135: =IFERROR(VLOOKUP(E135,'كود وجرد'!$E$5:$G$2609,3,0)+(G135+I135)-H135,"") ->  | L135: =الجدول1[[#This Row],[سعر الوحدة]]*الجدول1[[#This Row],[الكمية]] -> 
J136: =IFERROR(VLOOKUP(E136,'كود وجرد'!$E$5:$G$2609,3,0)+(G136+I136)-H136,"") ->  | L136: =الجدول1[[#This Row],[سعر الوحدة]]*الجدول1[[#This Row],[الكمية]] -> 
J137: =IFERROR(VLOOKUP(E137,'كود وجرد'!$E$5:$G$2609,3,0)+(G137+I137)-H137,"") ->  | L137: =الجدول1[[#This Row],[سعر الوحدة]]*الجدول1[[#This Row],[الكمية]] -> 
J138: =IFERROR(VLOOKUP(E138,'كود وجرد'!$E$5:$G$2609,3,0)+(G138+I138)-H138,"") ->  | L138: =الجدول1[[#This Row],[سعر الوحدة]]*الجدول1[[#This Row],[الكمية]] -> 
J139: =IFERROR(VLOOKUP(E139,'كود وجرد'!$E$5:$G$2609,3,0)+(G139+I139)-H139,"") ->  | L139: =الجدول1[[#This Row],[سعر الوحدة]]*الجدول1[[#This Row],[الكمية]] -> 
J140: =IFERROR(VLOOKUP(E140,'كود وجرد'!$E$5:$G$2609,3,0)+(G140+I140)-H140,"") ->  | L140: =الجدول1[[#This Row],[سعر الوحدة]]*الجدول1[[#This Row],[الكمية]] -> 
J141: =IFERROR(VLOOKUP(E141,'كود وجرد'!$E$5:$G$2609,3,0)+(G141+I141)-H141,"") ->  | L141: =الجدول1[[#This Row],[سعر الوحدة]]*الجدول1[[#This Row],[الكمية]] -> 
J142: =IFERROR(VLOOKUP(E142,'كود وجرد'!$E$5:$G$2609,3,0)+(G142+I142)-H142,"") ->  | L142: =الجدول1[[#This Row],[سعر الوحدة]]*الجدول1[[#This Row],[الكمية]] -> 
J143: =IFERROR(VLOOKUP(E143,'كود وجرد'!$E$5:$G$2609,3,0)+(G143+I143)-H143,"") ->  | L143: =الجدول1[[#This Row],[سعر الوحدة]]*الجدول1[[#This Row],[الكمية]] -> 
J144: =IFERROR(VLOOKUP(E144,'كود وجرد'!$E$5:$G$2609,3,0)+(G144+I144)-H144,"") ->  | L144: =الجدول1[[#This Row],[سعر الوحدة]]*الجدول1[[#This Row],[الكمية]] -> 
J145: =IFERROR(VLOOKUP(E145,'كود وجرد'!$E$5:$G$2609,3,0)+(G145+I145)-H145,"") ->  | L145: =الجدول1[[#This Row],[سعر الوحدة]]*الجدول1[[#This Row],[الكمية]] -> 
J146: =IFERROR(VLOOKUP(E146,'كود وجرد'!$E$5:$G$2609,3,0)+(G146+I146)-H146,"") ->  | L146: =الجدول1[[#This Row],[سعر الوحدة]]*الجدول1[[#This Row],[الكمية]] -> 
J147: =IFERROR(VLOOKUP(E147,'كود وجرد'!$E$5:$G$2609,3,0)+(G147+I147)-H147,"") ->  | L147: =الجدول1[[#This Row],[سعر الوحدة]]*الجدول1[[#This Row],[الكمية]] -> 
J148: =IFERROR(VLOOKUP(E148,'كود وجرد'!$E$5:$G$2609,3,0)+(G148+I148)-H148,"") ->  | L148: =الجدول1[[#This Row],[سعر الوحدة]]*الجدول1[[#This Row],[الكمية]] -> 
J149: =IFERROR(VLOOKUP(E149,'كود وجرد'!$E$5:$G$2609,3,0)+(G149+I149)-H149,"") ->  | L149: =الجدول1[[#This Row],[سعر الوحدة]]*الجدول1[[#This Row],[الكمية]] -> 
J150: =IFERROR(VLOOKUP(E150,'كود وجرد'!$E$5:$G$2609,3,0)+(G150+I150)-H150,"") ->  | L150: =الجدول1[[#This Row],[سعر الوحدة]]*الجدول1[[#This Row],[الكمية]] -> 
J151: =IFERROR(VLOOKUP(E151,'كود وجرد'!$E$5:$G$2609,3,0)+(G151+I151)-H151,"") ->  | L151: =الجدول1[[#This Row],[سعر الوحدة]]*الجدول1[[#This Row],[الكمية]] -> 
J152: =IFERROR(VLOOKUP(E152,'كود وجرد'!$E$5:$G$2609,3,0)+(G152+I152)-H152,"") ->  | L152: =الجدول1[[#This Row],[سعر الوحدة]]*الجدول1[[#This Row],[الكمية]] -> 
J153: =IFERROR(VLOOKUP(E153,'كود وجرد'!$E$5:$G$2609,3,0)+(G153+I153)-H153,"") ->  | L153: =الجدول1[[#This Row],[سعر الوحدة]]*الجدول1[[#This Row],[الكمية]] -> 
J154: =IFERROR(VLOOKUP(E154,'كود وجرد'!$E$5:$G$2609,3,0)+(G154+I154)-H154,"") ->  | L154: =الجدول1[[#This Row],[سعر الوحدة]]*الجدول1[[#This Row],[الكمية]] -> 
J155: =IFERROR(VLOOKUP(E155,'كود وجرد'!$E$5:$G$2609,3,0)+(G155+I155)-H155,"") ->  | L155: =الجدول1[[#This Row],[سعر الوحدة]]*الجدول1[[#This Row],[الكمية]] -> 
J156: =IFERROR(VLOOKUP(E156,'كود وجرد'!$E$5:$G$2609,3,0)+(G156+I156)-H156,"") ->  | L156: =الجدول1[[#This Row],[سعر الوحدة]]*الجدول1[[#This Row],[الكمية]] -> 
J157: =IFERROR(VLOOKUP(E157,'كود وجرد'!$E$5:$G$2609,3,0)+(G157+I157)-H157,"") ->  | L157: =الجدول1[[#This Row],[سعر الوحدة]]*الجدول1[[#This Row],[الكمية]] -> 
J158: =IFERROR(VLOOKUP(E158,'كود وجرد'!$E$5:$G$2609,3,0)+(G158+I158)-H158,"") ->  | L158: =الجدول1[[#This Row],[سعر الوحدة]]*الجدول1[[#This Row],[الكمية]] -> 
J159: =IFERROR(VLOOKUP(E159,'كود وجرد'!$E$5:$G$2609,3,0)+(G159+I159)-H159,"") ->  | L159: =الجدول1[[#This Row],[سعر الوحدة]]*الجدول1[[#This Row],[الكمية]] -> 
J160: =IFERROR(VLOOKUP(E160,'كود وجرد'!$E$5:$G$2609,3,0)+(G160+I160)-H160,"") ->  | L160: =الجدول1[[#This Row],[سعر الوحدة]]*الجدول1[[#This Row],[الكمية]] -> 
J161: =IFERROR(VLOOKUP(E161,'كود وجرد'!$E$5:$G$2609,3,0)+(G161+I161)-H161,"") ->  | L161: =الجدول1[[#This Row],[سعر الوحدة]]*الجدول1[[#This Row],[الكمية]] -> 
J162: =IFERROR(VLOOKUP(E162,'كود وجرد'!$E$5:$G$2609,3,0)+(G162+I162)-H162,"") ->  | L162: =الجدول1[[#This Row],[سعر الوحدة]]*الجدول1[[#This Row],[الكمية]] -> 
J163: =IFERROR(VLOOKUP(E163,'كود وجرد'!$E$5:$G$2609,3,0)+(G163+I163)-H163,"") ->  | L163: =الجدول1[[#This Row],[سعر الوحدة]]*الجدول1[[#This Row],[الكمية]] -> 
J164: =IFERROR(VLOOKUP(E164,'كود وجرد'!$E$5:$G$2609,3,0)+(G164+I164)-H164,"") ->  | L164: =الجدول1[[#This Row],[سعر الوحدة]]*الجدول1[[#This Row],[الكمية]] -> 
J165: =IFERROR(VLOOKUP(E165,'كود وجرد'!$E$5:$G$2609,3,0)+(G165+I165)-H165,"") ->  | L165: =الجدول1[[#This Row],[سعر الوحدة]]*الجدول1[[#This Row],[الكمية]] -> 
J166: =IFERROR(VLOOKUP(E166,'كود وجرد'!$E$5:$G$2609,3,0)+(G166+I166)-H166,"") ->  | L166: =الجدول1[[#This Row],[سعر الوحدة]]*الجدول1[[#This Row],[الكمية]] -> 
J167: =IFERROR(VLOOKUP(E167,'كود وجرد'!$E$5:$G$2609,3,0)+(G167+I167)-H167,"") ->  | L167: =الجدول1[[#This Row],[سعر الوحدة]]*الجدول1[[#This Row],[الكمية]] -> 
J168: =IFERROR(VLOOKUP(E168,'كود وجرد'!$E$5:$G$2609,3,0)+(G168+I168)-H168,"") ->  | L168: =الجدول1[[#This Row],[سعر الوحدة]]*الجدول1[[#This Row],[الكمية]] -> 
J169: =IFERROR(VLOOKUP(E169,'كود وجرد'!$E$5:$G$2609,3,0)+(G169+I169)-H169,"") ->  | L169: =الجدول1[[#This Row],[سعر الوحدة]]*الجدول1[[#This Row],[الكمية]] -> 
J170: =IFERROR(VLOOKUP(E170,'كود وجرد'!$E$5:$G$2609,3,0)+(G170+I170)-H170,"") ->  | L170: =الجدول1[[#This Row],[سعر الوحدة]]*الجدول1[[#This Row],[الكمية]] -> 
J171: =IFERROR(VLOOKUP(E171,'كود وجرد'!$E$5:$G$2609,3,0)+(G171+I171)-H171,"") ->  | L171: =الجدول1[[#This Row],[سعر الوحدة]]*الجدول1[[#This Row],[الكمية]] -> 
J172: =IFERROR(VLOOKUP(E172,'كود وجرد'!$E$5:$G$2609,3,0)+(G172+I172)-H172,"") ->  | L172: =الجدول1[[#This Row],[سعر الوحدة]]*الجدول1[[#This Row],[الكمية]] -> 
J173: =IFERROR(VLOOKUP(E173,'كود وجرد'!$E$5:$G$2609,3,0)+(G173+I173)-H173,"") ->  | L173: =الجدول1[[#This Row],[سعر الوحدة]]*الجدول1[[#This Row],[الكمية]] -> 
J174: =IFERROR(VLOOKUP(E174,'كود وجرد'!$E$5:$G$2609,3,0)+(G174+I174)-H174,"") ->  | L174: =الجدول1[[#This Row],[سعر الوحدة]]*الجدول1[[#This Row],[الكمية]] -> 
J175: =IFERROR(VLOOKUP(E175,'كود وجرد'!$E$5:$G$2609,3,0)+(G175+I175)-H175,"") ->  | L175: =الجدول1[[#This Row],[سعر الوحدة]]*الجدول1[[#This Row],[الكمية]] -> 
J176: =IFERROR(VLOOKUP(E176,'كود وجرد'!$E$5:$G$2609,3,0)+(G176+I176)-H176,"") ->  | L176: =الجدول1[[#This Row],[سعر الوحدة]]*الجدول1[[#This Row],[الكمية]] -> 
J177: =IFERROR(VLOOKUP(E177,'كود وجرد'!$E$5:$G$2609,3,0)+(G177+I177)-H177,"") ->  | L177: =الجدول1[[#This Row],[سعر الوحدة]]*الجدول1[[#This Row],[الكمية]] -> 
J178: =IFERROR(VLOOKUP(E178,'كود وجرد'!$E$5:$G$2609,3,0)+(G178+I178)-H178,"") ->  | L178: =الجدول1[[#This Row],[سعر الوحدة]]*الجدول1[[#This Row],[الكمية]] -> 
J179: =IFERROR(VLOOKUP(E179,'كود وجرد'!$E$5:$G$2609,3,0)+(G179+I179)-H179,"") ->  | L179: =الجدول1[[#This Row],[سعر الوحدة]]*الجدول1[[#This Row],[الكمية]] -> 
J180: =IFERROR(VLOOKUP(E180,'كود وجرد'!$E$5:$G$2609,3,0)+(G180+I180)-H180,"") ->  | L180: =الجدول1[[#This Row],[سعر الوحدة]]*الجدول1[[#This Row],[الكمية]] -> 
J181: =IFERROR(VLOOKUP(E181,'كود وجرد'!$E$5:$G$2609,3,0)+(G181+I181)-H181,"") ->  | L181: =الجدول1[[#This Row],[سعر الوحدة]]*الجدول1[[#This Row],[الكمية]] -> 
J182: =IFERROR(VLOOKUP(E182,'كود وجرد'!$E$5:$G$2609,3,0)+(G182+I182)-H182,"") ->  | L182: =الجدول1[[#This Row],[سعر الوحدة]]*الجدول1[[#This Row],[الكمية]] -> 
J183: =IFERROR(VLOOKUP(E183,'كود وجرد'!$E$5:$G$2609,3,0)+(G183+I183)-H183,"") ->  | L183: =الجدول1[[#This Row],[سعر الوحدة]]*الجدول1[[#This Row],[الكمية]] -> 
J184: =IFERROR(VLOOKUP(E184,'كود وجرد'!$E$5:$G$2609,3,0)+(G184+I184)-H184,"") ->  | L184: =الجدول1[[#This Row],[سعر الوحدة]]*الجدول1[[#This Row],[الكمية]] -> 
J185: =IFERROR(VLOOKUP(E185,'كود وجرد'!$E$5:$G$2609,3,0)+(G185+I185)-H185,"") ->  | L185: =الجدول1[[#This Row],[سعر الوحدة]]*الجدول1[[#This Row],[الكمية]] -> 
J186: =IFERROR(VLOOKUP(E186,'كود وجرد'!$E$5:$G$2609,3,0)+(G186+I186)-H186,"") ->  | L186: =الجدول1[[#This Row],[سعر الوحدة]]*الجدول1[[#This Row],[الكمية]] -> 
J187: =IFERROR(VLOOKUP(E187,'كود وجرد'!$E$5:$G$2609,3,0)+(G187+I187)-H187,"") ->  | L187: =الجدول1[[#This Row],[سعر الوحدة]]*الجدول1[[#This Row],[الكمية]] -> 
J188: =IFERROR(VLOOKUP(E188,'كود وجرد'!$E$5:$G$2609,3,0)+(G188+I188)-H188,"") ->  | L188: =الجدول1[[#This Row],[سعر الوحدة]]*الجدول1[[#This Row],[الكمية]] -> 
J189: =IFERROR(VLOOKUP(E189,'كود وجرد'!$E$5:$G$2609,3,0)+(G189+I189)-H189,"") ->  | L189: =الجدول1[[#This Row],[سعر الوحدة]]*الجدول1[[#This Row],[الكمية]] -> 
J190: =IFERROR(VLOOKUP(E190,'كود وجرد'!$E$5:$G$2609,3,0)+(G190+I190)-H190,"") ->  | L190: =الجدول1[[#This Row],[سعر الوحدة]]*الجدول1[[#This Row],[الكمية]] -> 
J191: =IFERROR(VLOOKUP(E191,'كود وجرد'!$E$5:$G$2609,3,0)+(G191+I191)-H191,"") ->  | L191: =الجدول1[[#This Row],[سعر الوحدة]]*الجدول1[[#This Row],[الكمية]] -> 
J192: =IFERROR(VLOOKUP(E192,'كود وجرد'!$E$5:$G$2609,3,0)+(G192+I192)-H192,"") ->  | L192: =الجدول1[[#This Row],[سعر الوحدة]]*الجدول1[[#This Row],[الكمية]] -> 
J193: =IFERROR(VLOOKUP(E193,'كود وجرد'!$E$5:$G$2609,3,0)+(G193+I193)-H193,"") ->  | L193: =الجدول1[[#This Row],[سعر الوحدة]]*الجدول1[[#This Row],[الكمية]] -> 
J194: =IFERROR(VLOOKUP(E194,'كود وجرد'!$E$5:$G$2609,3,0)+(G194+I194)-H194,"") ->  | L194: =الجدول1[[#This Row],[سعر الوحدة]]*الجدول1[[#This Row],[الكمية]] -> 
J195: =IFERROR(VLOOKUP(E195,'كود وجرد'!$E$5:$G$2609,3,0)+(G195+I195)-H195,"") ->  | L195: =الجدول1[[#This Row],[سعر الوحدة]]*الجدول1[[#This Row],[الكمية]] -> 
J196: =IFERROR(VLOOKUP(E196,'كود وجرد'!$E$5:$G$2609,3,0)+(G196+I196)-H196,"") ->  | L196: =الجدول1[[#This Row],[سعر الوحدة]]*الجدول1[[#This Row],[الكمية]] -> 
J197: =IFERROR(VLOOKUP(E197,'كود وجرد'!$E$5:$G$2609,3,0)+(G197+I197)-H197,"") ->  | L197: =الجدول1[[#This Row],[سعر الوحدة]]*الجدول1[[#This Row],[الكمية]] -> 
J198: =IFERROR(VLOOKUP(E198,'كود وجرد'!$E$5:$G$2609,3,0)+(G198+I198)-H198,"") ->  | L198: =الجدول1[[#This Row],[سعر الوحدة]]*الجدول1[[#This Row],[الكمية]] -> 
J199: =IFERROR(VLOOKUP(E199,'كود وجرد'!$E$5:$G$2609,3,0)+(G199+I199)-H199,"") ->  | L199: =الجدول1[[#This Row],[سعر الوحدة]]*الجدول1[[#This Row],[الكمية]] -> 
J200: =IFERROR(VLOOKUP(E200,'كود وجرد'!$E$5:$G$2609,3,0)+(G200+I200)-H200,"") ->  | L200: =الجدول1[[#This Row],[سعر الوحدة]]*الجدول1[[#This Row],[الكمية]] -> 
J201: =IFERROR(VLOOKUP(E201,'كود وجرد'!$E$5:$G$2609,3,0)+(G201+I201)-H201,"") ->  | L201: =الجدول1[[#This Row],[سعر الوحدة]]*الجدول1[[#This Row],[الكمية]] -> 
J202: =IFERROR(VLOOKUP(E202,'كود وجرد'!$E$5:$G$2609,3,0)+(G202+I202)-H202,"") ->  | L202: =الجدول1[[#This Row],[سعر الوحدة]]*الجدول1[[#This Row],[الكمية]] -> 
... 6215 more rows

Sheet كارت الصنف
A1: 1019
D2: كود الصنف | E2: 100 | F2: =E3 -> مواسير استيم لحام ½" جدول40 | M2: الرصيد | N2: =O3-SUM($G$5:$G$13000) -> 93.4 | O2: =O3-SUM($G$5:$G$13000) -> 93.4
D3: اسم الصنف | E3: =VLOOKUP($E$2,'حركة اليوميه'!E5:F9997,2,0) -> مواسير استيم لحام ½" جدول40 | M3: المباع | N3: =O3-N2 -> 0 | O3: =SUM($F$5:$F$13000,$H$5:$H$13000) -> 93.4
D4: اليوم | E4: التاريخ | F4: الوارد | G4: الصادر | H4: مرتجع | I4: الكمية | J4: سعر الوحدة | K4: الإجمالي | L4: كود الشركة | M4: اسم الشركة | N4: رقم الاذن | O4: ملاحظات | P4: Column1 | Q4: Column2 | R4: Column3
E5: 2018-04-17 | F5: 93.4 | I5: 93.4
